bitfinex-derivatives/quotes_SOLF0:USTF0_20240904
["timestamp","ask_amount","ask_price","bid_price","bid_amount"]
[1725464923302,3.7643,132.82,132.77,0.05288903]
[1725464923696,29.81400621,132.87,132.77,0.05288903]
[1725464923996,0.36903534,132.86,132.81,0.04929069]
[1725464924184,29.81400621,132.87,132.81,0.04929069]
[1725464924386,3.7644,132.82,132.81,0.04929069]
[1725464925090,29.73292256,132.82,132.73,4.2076]
[1725464925495,29.73292256,132.82,132.75,3.7662]
[1725464925995,3.7653,132.79,132.77,0.04840285]
[1725464926196,0.04929553,132.8,132.77,0.04840285]
[1725464926390,3.7651,132.79,132.77,0.04840285]
[1725464926692,0.04929553,132.8,132.77,0.04840285]
[1725464926997,3.7654,132.78,132.77,0.04840285]
[1725464927393,3.7654,132.78,132.53,63.754]
[1725464927394,3.7661,132.76,132.67,26.03]
[1725464927595,26.03,132.79,132.68,1.9621]
[1725464928093,3.7661,132.76,132.68,1.9621]
[1725464928292,3.7661,132.76,132.73,3.7667]
[1725464928490,3.81652855,132.76,132.73,0.05141688]
[1725464928800,0.05042855,132.76,132.73,3.81801688]
[1725464929694,0.05042855,132.76,132.74,3.7664]
[1725464930188,0.05042855,132.76,132.73,0.05141688]
[1725464930189,0.05042855,132.76,132.73,3.81811688]
[1725464930900,0.05042855,132.76,132.74,3.7665]
[1725464931902,0.05042855,132.76,132.73,3.81811688]
[1725464932198,0.05042855,132.76,132.73,0.05141688]
[1725464932599,3.7662,132.75,132.73,0.05141688]
[1725464932799,0.05042855,132.76,132.73,0.05141688]
[1725464933195,0.05042855,132.76,132.73,3.81821688]
[1725464933394,3.81662855,132.76,132.73,3.81821688]
[1725464933700,0.05042855,132.76,132.75,3.7662]
[1725464933995,0.05042855,132.76,132.73,0.05141688]
[1725464934197,0.05042855,132.76,132.74,3.7664]
[1725464934997,0.05042855,132.76,132.73,0.05141688]
[1725464935599,3.7662,132.75,132.73,0.05141688]
[1725464937499,3.81652855,132.76,132.73,3.81821688]
[1725464937701,0.05042855,132.76,132.73,0.05141688]
[1725464938299,3.8894,132.83,132.73,0.05141688]
[1725464938300,2.1308,132.83,132.73,21.75141688]
[1725464938506,21.7,132.86,132.73,21.7]
[1725464938701,25.44830444,132.86,132.73,21.7]
[1725464939303,3.8126708,132.81,132.78,3.82328225]
[1725464939507,3.8126708,132.81,132.78,3.82028205]
[1725464939802,0.0480708,132.81,132.8,3.7648]
[1725464940201,0.0480708,132.81,132.78,0.05508205]
[1725464940398,0.0480708,132.81,132.79,3.765]
[1725464940596,0.0480708,132.81,132.78,0.05508205]
[1725464940799,0.0480708,132.81,132.8,3.7648]
[1725464943402,0.0480708,132.81,132.78,0.05508205]
[1725464943996,0.0480708,132.81,132.8,3.7648]
[1725464944805,3.74830444,132.86,132.8,3.7648]
[1725464945006,1.8001,132.92,132.8,21.7]
[1725464945611,3.81345082,132.92,132.85,21.7]
[1725464945908,4.0227,132.99,132.87,0.05223091]
[1725464946211,0.36853831,132.98,132.92,0.04831586]
[1725464946615,3.7602,132.97,132.93,3.7609]
[1725464946906,27.66488046,132.99,132.92,0.04831586]
[1725464947111,3.7603,132.97,132.93,3.7611]
[1725464947317,3.7603,132.97,132.87,21.7]
[1725464947318,25.44228046,132.99,132.87,21.7]
[1725464947513,25.44228046,132.99,132.92,0.05264988]
[1725464948311,21.7,132.97,132.92,0.05264988]
[1725464949306,21.7,133.0,132.92,0.05264988]
[1725464949611,21.7,133.0,132.95,0.04875892]
[1725464949912,25.38726762,133.0,132.96,0.05022704]
[1725464950212,25.38726762,133.0,132.97,0.05413657]
[1725464950411,3.7594,132.99,132.97,0.05756785]
[1725464950709,25.38726762,133.0,132.97,0.05756785]
[1725464950907,0.36892955,132.99,132.97,0.05756785]
[1725464951107,3.7597,132.98,132.97,0.05756785]
[1725464952211,21.7,133.07,132.97,0.05756785]
[1725464952411,21.7,133.07,132.93,21.7]
[1725464952412,0.36825369,133.06,133.01,0.04932031]
[1725464952712,4.04056369,133.06,133.01,0.04932031]
[1725464952908,0.36825369,133.05,133.01,0.04932031]
[1725464953114,3.758,133.05,133.01,0.04932031]
[1725464953311,567.0,133.16,133.01,0.04932031]
[1725464953506,567.0,133.16,133.07,0.05381191]
[1725464953507,4.2874,133.1,133.07,0.05381191]
[1725464953815,3.82844243,133.1,133.07,0.05468807]
[1725464954015,21.7,133.1,133.07,0.05468807]
[1725464954217,3.7569,133.08,133.07,0.05468807]
[1725464955015,21.7,133.1,133.07,0.05468807]
[1725464955611,21.7,133.1,132.95,21.7]
[1725464955813,21.7,133.06,132.99,3.7593]
[1725464956114,21.7,133.06,132.95,4.6911]
[1725464956410,3.80676214,133.06,132.95,26.3911]
[1725464956615,3.7573,133.07,132.95,26.3911]
[1725464956812,0.05321335,133.02,132.99,0.05142009]
[1725464957012,0.05321335,133.02,133.01,3.7588]
[1725464958315,0.05321335,133.02,132.99,0.0554415]
[1725464959318,0.05321335,133.02,133.01,3.7589]
[1725464959712,3.78721522,133.07,132.97,21.7]
[1725464960012,21.7,133.1,133.0,21.7]
[1725464960212,25.44915508,133.1,133.01,2.4685]
[1725464960414,3.7569,133.08,133.05,3.7576]
[1725464960614,25.44915508,133.1,133.02,2.3354]
[1725464960816,21.7,133.08,133.05,0.05158316]
[1725464961115,3.7577,133.06,133.05,0.05158316]
[1725464961516,3.7587,133.02,132.95,4.6341]
[1725464961711,3.7587,133.02,132.96,2.3461]
[1725464962107,3.7587,133.02,132.98,3.7596]
[1725464962311,3.7587,133.02,132.96,2.3461]
[1725464962512,0.05158316,133.0,132.98,0.0476697]
[1725464962816,3.82233429,133.0,132.98,3.80734144]
[1725464963011,0.04987152,133.0,132.98,3.80734144]
[1725464963709,3.87722015,133.0,132.98,3.80734144]
[1725464963916,0.04987152,133.0,132.98,3.80734144]
[1725464964116,3.81068045,133.0,132.98,0.04784144]
[1725464964311,3.7594,132.99,132.98,0.04784144]
[1725464965618,3.8310818,133.0,132.98,0.04784144]
[1725464967520,3.8310818,133.0,132.99,3.7594]
[1725464968119,2.3895,133.07,133.02,3.7584]
[1725464968319,2.3895,133.07,132.99,2.4103]
[1725464968615,2.3895,133.07,133.01,3.7586]
[1725464969218,3.758,133.04,133.01,3.7586]
[1725464969524,24.0895,133.07,133.01,0.0484866]
[1725464970016,3.78825186,133.08,133.01,0.0484866]
[1725464970223,24.0356,133.12,133.01,21.7484866]
[1725464970412,3.7568,133.09,133.06,3.7573]
[1725464970615,27.8903465,133.12,133.06,0.04782165]
[1725464970821,3.7568,133.09,133.06,0.04782165]
[1725464971021,3.7568,133.09,133.06,3.80522165]
[1725464971218,3.8547465,133.12,133.06,0.04782165]
[1725464971415,21.7,133.14,133.06,0.04782165]
[1725464971617,6.6678,133.18,133.09,0.05565866]
[1725464971812,0.36719054,133.17,133.12,0.05490772]
[1725464972120,32.07729552,133.18,133.12,0.05490772]
[1725464972313,21.7,133.15,133.12,0.05490772]
[1725464972518,3.7552,133.14,133.12,0.05490772]
[1725464973113,3.7555,133.13,133.12,0.05490772]
[1725464973924,21.7,133.13,133.06,2.3399]
[1725464974219,21.7,133.11,133.05,3.7576]
[1725464974421,25.53776875,133.11,133.02,4.5773]
[1725464975015,0.05427487,133.08,133.05,3.81031988]
[1725464975411,0.05427487,133.08,133.05,0.05261988]
[1725464976028,3.81127487,133.08,133.05,0.05261988]
[1725464976223,0.05427487,133.08,133.05,3.81031988]
[1725464976726,0.05427487,133.08,133.05,0.05261988]
[1725464977132,3.81127487,133.08,133.05,0.05261988]
[1725464977334,0.05427487,133.08,133.05,0.05261988]
[1725464977821,3.81137487,133.08,133.05,0.05261988]
[1725464978324,0.05427487,133.08,133.05,0.05261988]
[1725464978529,21.7,133.07,133.05,0.05261988]
[1725464978826,21.7,133.07,132.94,21.7]
[1725464978827,3.7585,133.03,132.95,10.84566898]
[1725464979034,3.67604766,133.02,132.95,7.1497]
[1725464979331,3.7588,133.02,132.98,3.7594]
[1725464979523,7.54873748,133.02,132.98,3.7594]
[1725464979728,0.05765372,133.01,132.99,0.04911158]
[1725464979925,3.78542699,133.0,132.99,0.04911158]
[1725464980231,3.85134994,133.01,132.99,0.04911158]
[1725464980429,3.85134994,133.01,132.99,3.80831158]
[1725464980835,3.85134994,133.01,132.99,0.04911158]
[1725464981036,7.61034994,133.01,132.99,0.04911158]
[1725464981440,3.85134994,133.01,132.99,0.04911158]
[1725464981733,3.85134994,133.01,132.99,3.80831158]
[1725464982132,7.61044994,133.01,132.99,0.04911158]
[1725464983136,3.85134994,133.01,132.99,0.04911158]
[1725464983328,3.85134994,133.01,132.99,3.80841158]
[1725464983535,3.85134994,133.01,132.99,0.04911158]
[1725464984437,3.85134994,133.01,133.0,3.7592]
[1725464984438,0.05765372,133.01,133.0,3.7592]
[1725464985630,3.76325486,133.04,133.03,3.7583]
[1725464985844,28.493,133.1,132.98,21.7]
[1725464986047,28.493,133.1,132.95,10.87037181]
[1725464986048,21.7,133.13,133.01,21.7]
[1725464986240,21.7,133.13,133.02,4.7244]
[1725464986545,3.7562,133.11,133.03,3.83507558]
[1725464986748,0.04893858,133.08,133.06,0.04886792]
[1725464987048,0.04893858,133.08,133.07,3.7572]
[1725464988948,0.04893858,133.08,133.06,3.80616792]
[1725464989749,0.04893858,133.08,133.07,3.7572]
[1725464990047,0.04893858,133.08,133.06,0.04886792]
[1725464990242,0.04893858,133.08,133.06,3.80606792]
[1725464990444,0.04893858,133.08,132.81,38.4864629]
[1725464990445,21.74893858,133.08,132.87,11.2884]
[1725464990641,21.7,133.04,132.96,4.7667]
[1725464990838,3.7588,133.02,132.96,4.7667]
[1725464991141,25.50035654,133.04,132.96,4.7667]
[1725464991537,0.0488765,133.01,132.99,0.05358803]
[1725464992141,0.0488765,133.01,133.0,3.7592]
[1725464992753,0.0488765,133.01,132.99,0.05358803]
[1725464992946,21.7,133.0,132.92,2.2722]
[1725464993150,3.76,132.98,132.94,3.7607]
[1725464993452,21.7,133.0,132.88,26.2927]
[1725464993655,21.7,133.0,132.89,2.2734]
[1725464993857,3.7596,132.99,132.95,3.7604]
[1725464994045,3.7596,132.99,132.96,0.04862324]
[1725464994046,0.05547832,132.98,132.96,0.04862324]
[1725464994653,3.67316229,132.97,132.96,3.80882324]
[1725464994848,0.05547832,132.98,132.96,0.04862324]
[1725464995244,3.76382514,132.97,132.96,0.04862324]
[1725464995450,0.05547832,132.98,132.96,0.04862324]
[1725464995954,3.76,132.97,132.96,0.04862324]
[1725464996157,7.55768264,132.97,132.96,0.04862324]
[1725464997558,3.79768264,132.97,132.96,0.04862324]
[1725464997747,0.05547832,132.98,132.96,0.04862324]
[1725464997949,3.76,132.97,132.96,0.04862324]
[1725464998151,21.7,132.97,132.88,4.5927]
[1725464998352,3.7612,132.93,132.88,4.5927]
[1725464998550,21.7,132.95,132.89,3.7621]
[1725464999152,0.05684747,132.93,132.91,0.0554416]
[1725464999758,0.05684747,132.93,132.91,3.8170416]
[1725464999959,0.05684747,132.93,132.91,0.0554416]
[1725465000360,3.81814747,132.93,132.91,0.0554416]
[1725465000656,0.05684747,132.93,132.91,0.0554416]
[1725465000853,3.7614,132.92,132.91,0.0554416]
[1725465001048,3.7614,132.92,132.74,11.2989]
[1725465001049,21.7,132.92,132.74,11.2989]
[1725465001255,21.7,132.89,132.79,7.1966]
[1725465001465,7.54278684,132.89,132.79,28.8966]
[1725465001657,25.48038684,132.89,132.79,7.1966]
[1725465001955,3.7635,132.85,132.81,3.7644]
[1725465002158,0.05245235,132.84,132.82,0.05209104]
[1725465002561,0.05245235,132.84,132.82,3.81629104]
[1725465004864,0.05245235,132.84,132.83,3.764]
[1725465005366,0.05245235,132.84,132.82,3.81619104]
[1725465005864,0.05245235,132.84,132.82,0.05209104]
[1725465006666,7.86347383,132.99,132.9,3.7618]
[1725465006864,3.68477343,132.92,132.83,21.7]
[1725465007053,21.7,132.97,132.83,21.7]
[1725465007256,21.7,132.94,132.82,3.71489317]
[1725465007453,21.7,132.92,132.79,28.8966]
[1725465007662,0.05384027,132.87,132.84,0.04893043]
[1725465007853,3.79688004,132.87,132.84,0.04848056]
[1725465008055,0.05384027,132.87,132.84,0.04848056]
[1725465008263,3.74645606,132.87,132.84,0.04848056]
[1725465008463,3.74645606,132.87,132.85,3.7634]
[1725465008770,3.74645606,132.87,132.84,0.04848056]
[1725465008965,3.74645606,132.87,132.85,3.7634]
[1725465009160,3.74645606,132.87,132.84,0.04848056]
[1725465009366,7.50935606,132.87,132.84,0.04848056]
[1725465009760,3.74645606,132.87,132.84,0.04848056]
[1725465009961,25.44645606,132.87,132.84,0.04848056]
[1725465011174,25.4634,132.85,132.84,0.04848056]
[1725465012071,3.7634,132.85,132.84,0.04848056]
[1725465012668,21.7,132.85,132.7,7.5353]
[1725465012861,21.7,132.8,132.7,7.1414]
[1725465013069,21.7,132.77,132.7,7.1414]
[1725465013771,3.82241796,132.75,132.72,3.82317248]
[1725465013973,0.05611796,132.75,132.72,0.05637248]
[1725465014172,3.82261796,132.75,132.72,0.05637248]
[1725465014371,0.05611796,132.75,132.72,0.05637248]
[1725465014675,0.05611796,132.75,132.74,3.7665]
[1725465015267,3.83269883,132.79,132.7,7.1414]
[1725465015676,21.7,132.82,132.78,3.7652]
[1725465015864,24.0539,132.84,132.74,3.79728413]
[1725465016069,3.74792961,132.82,132.71,21.7]
[1725465016272,0.05316975,132.78,132.75,0.0477079]
[1725465017169,21.7,132.84,132.75,0.0477079]
[1725465017365,21.7,132.84,132.73,3.79238636]
[1725465017566,21.7,132.84,132.73,25.49238636]
[1725465017771,21.7,132.84,132.73,21.7]
[1725465018276,0.05407778,132.8,132.77,0.05149125]
[1725465018571,0.05527526,132.8,132.79,3.7651]
[1725465018970,23.9876,132.87,132.82,3.7641]
[1725465018971,3.7632,132.86,132.82,3.7641]
[1725465019171,25.40799389,132.89,132.79,2.4165]
[1725465019374,24.1273,132.91,132.79,2.4165]
[1725465019965,0.04782386,132.86,132.84,3.81591305]
[1725465020171,0.04782386,132.86,132.84,0.05241305]
[1725465020172,0.04876811,132.86,132.84,0.05241305]
[1725465021876,0.04876811,132.86,132.78,2.2382]
[1725465021877,21.7,132.85,132.78,2.2382]
[1725465022076,3.764,132.83,132.78,6.0035]
[1725465022275,3.73333835,132.82,132.78,2.2382]
[1725465022575,7.49763835,132.82,132.78,2.2382]
[1725465022775,7.52361922,132.82,132.78,2.2382]
[1725465022981,0.05004973,132.81,132.79,0.04908811]
[1725465023182,0.05004973,132.81,132.79,3.81408811]
[1725465023779,0.05004973,132.81,132.79,0.04908811]
[1725465025374,0.05004973,132.81,132.79,3.81418811]
[1725465026382,0.05004973,132.81,132.79,0.04908811]
[1725465026780,3.81454973,132.81,132.79,0.04908811]
[1725465027086,0.05004973,132.81,132.79,0.04908811]
[1725465029686,3.7648,132.8,132.79,0.04908811]
[1725465029878,0.05004973,132.81,132.79,0.04908811]
[1725465030187,0.05004973,132.81,132.8,3.7648]
[1725465030787,3.68984714,132.84,132.79,0.04908811]
[1725465031087,3.7636,132.85,132.79,0.04908811]
[1725465031385,21.7,132.89,132.76,21.7]
[1725465031584,3.77589355,132.91,132.8,21.7]
[1725465031784,227.0,132.96,132.84,0.0540399]
[1725465031987,25.40914294,132.94,132.84,4.6275]
[1725465032190,0.05584019,132.9,132.88,0.04944061]
[1725465033084,0.05584019,132.9,132.89,3.7623]
[1725465034084,0.05584019,132.9,132.88,0.04944061]
[1725465034282,3.70914294,132.94,132.88,0.04944061]
[1725465034486,227.0,133.0,132.88,0.04944061]
[1725465034487,21.7,132.98,132.88,0.04944061]
[1725465034685,3.7609,132.94,132.9,3.7618]
[1725465034882,21.7,132.96,132.84,4.6275]
[1725465035281,21.7,132.96,132.9,3.762]
[1725465035282,0.03609467,132.91,132.9,3.762]
[1725465035482,3.76176153,132.91,132.89,0.05057769]
[1725465035692,0.03609467,132.92,132.89,3.81287769]
[1725465035889,0.03609467,132.92,132.89,0.05057769]
[1725465037789,0.03609467,132.92,132.91,3.7617]
[1725465038903,237.27913104,133.11,132.9,21.7]
[1725465039084,237.27913104,133.11,132.85,21.7]
[1725465039085,21.7,133.05,132.93,21.7]
[1725465039392,3.7582,133.04,132.99,3.7592]
[1725465039591,3.83335138,133.04,132.94,2.4333]
[1725465039787,21.7,133.05,132.94,2.4333]
[1725465040090,21.7,133.05,132.98,0.0525387]
[1725465040493,3.7583,133.04,133.0,3.7591]
[1725465040688,7.538852,133.04,133.01,0.05000171]
[1725465040895,3.7583,133.04,133.01,0.05000171]
[1725465041289,3.82830713,133.04,133.01,0.05000171]
[1725465041496,21.7,133.05,133.01,0.05000171]
[1725465041793,3.7586,133.02,133.01,0.05000171]
[1725465041998,3.75047003,133.02,133.01,0.05000171]
[1725465042202,26.0,133.03,133.01,0.05000171]
[1725465042501,3.67000075,133.03,133.01,0.05000171]
[1725465042792,26.0,133.08,133.01,0.05000171]
[1725465043194,4.7465,133.1,133.01,0.05000171]
[1725465043504,3.7572,133.07,133.04,0.05463161]
[1725465043795,4.7465,133.1,133.04,0.05463161]
[1725465044193,4.7465,133.1,132.98,2.4164]
[1725465044194,26.0,133.08,132.98,2.4164]
[1725465044593,26.0,133.05,132.98,2.4164]
[1725465044794,26.0,133.03,132.94,2.4333]
[1725465045097,26.0,133.0,132.87,26.0]
[1725465045288,0.05050774,132.95,132.92,0.05048753]
[1725465045492,0.05050774,132.95,132.92,3.79038235]
[1725465045698,0.05050774,132.95,132.94,3.7608]
[1725465049496,0.05050774,132.95,132.92,0.0502496]
[1725465049691,3.73035856,132.97,132.85,2.3793]
[1725465049692,26.0,132.93,132.85,2.3793]
[1725465050098,3.7615,132.92,132.85,2.3793]
[1725465050295,26.0,132.93,132.85,2.3793]
[1725465050695,26.05446133,132.9,132.88,0.05068897]
[1725465050890,26.05446133,132.9,132.81,2.4336]
[1725465050891,29.71132856,132.9,132.81,2.4336]
[1725465051091,3.7626,132.88,132.83,3.7638]
[1725465051299,3.71132856,132.9,132.81,6.13777764]
[1725465051497,2.402,132.92,132.81,2.4336]
[1725465051692,26.0,132.9,132.81,2.4336]
[1725465051897,0.05306346,132.87,132.84,0.05686418]
[1725465052397,0.05306346,132.87,132.84,3.82046418]
[1725465053201,0.05306346,132.87,132.84,0.05686418]
[1725465053596,0.05306346,132.87,132.84,3.82036418]
[1725465053898,0.05306346,132.87,132.84,0.05686418]
[1725465054503,0.05306346,132.87,132.86,3.7631]
[1725465055992,3.7613,132.93,132.89,3.7622]
[1725465056196,3.7609,132.94,132.82,26.0]
[1725465056400,3.7609,132.94,132.85,26.0]
[1725465056600,3.7609,132.94,132.89,3.7621]
[1725465056903,3.7609,132.94,132.85,26.0]
[1725465057097,3.81428167,132.93,132.9,0.05572096]
[1725465057601,3.7617,132.92,132.9,0.05572096]
[1725465057802,7.56090222,132.92,132.9,0.05572096]
[1725465058203,3.79920222,132.92,132.9,0.05572096]
[1725465058698,3.81448167,132.93,132.9,0.05572096]
[1725465059400,3.7614,132.92,132.9,0.05572096]
[1725465059599,0.05318167,132.93,132.9,0.05572096]
[1725465059800,3.88699709,132.93,132.9,0.05572096]
[1725465060003,7.64829709,132.93,132.9,0.05572096]
[1725465060300,0.05318167,132.93,132.9,0.05572096]
[1725465060709,0.05318167,132.93,132.91,3.7615]
[1725465061001,3.7615,132.92,132.9,0.05572096]
[1725465061398,0.05318167,132.93,132.9,0.05572096]
[1725465061600,3.81448167,132.93,132.9,0.05572096]
[1725465062102,3.7615,132.92,132.9,0.05572096]
[1725465062701,3.7617,132.91,132.9,0.05572096]
[1725465063102,21.67,132.91,132.82,7.1524]
[1725465063301,21.67,132.91,132.84,3.7636]
[1725465063700,21.67,132.91,132.85,3.7632]
[1725465063905,25.48123921,132.94,132.82,28.8224]
[1725465064099,0.05462648,132.88,132.85,0.05372251]
[1725465064304,0.05174673,132.88,132.87,3.7628]
[1725465064607,4.4041,132.98,132.86,21.67]
[1725465064814,3.7602,132.97,132.93,3.7609]
[1725465065002,4.4041,133.02,132.89,21.67]
[1725465065003,21.67,133.01,132.89,21.67]
[1725465065203,21.67,133.01,132.9,4.6806]
[1725465065399,21.67,133.01,132.93,3.7611]
[1725465065604,0.05530448,132.98,132.96,0.05049713]
[1725465065908,29.75126521,132.98,132.96,0.05051052]
[1725465066101,3.76,132.97,132.96,0.05051052]
[1725465066303,7.49269114,132.97,132.96,0.05051052]
[1725465066710,3.73269114,132.97,132.86,2.378]
[1725465066906,25.99,132.94,132.82,2.3026]
[1725465067210,25.99,132.94,132.82,4.6806]
[1725465067211,3.7621,132.9,132.82,4.6806]
[1725465067712,0.053902,132.87,132.86,3.7631]
[1725465067908,0.05569274,132.88,132.85,0.05730806]
[1725465068102,3.67343867,132.91,132.84,25.99]
[1725465068307,25.99,132.99,132.87,25.99]
[1725465068601,0.04946911,132.94,132.92,0.05516915]
[1725465068802,3.81309263,132.94,132.92,0.05516915]
[1725465069404,3.7611,132.93,132.92,0.05516915]
[1725465070205,3.81319263,132.94,132.92,0.05516915]
[1725465070618,0.05219263,132.94,132.92,3.81646915]
[1725465070917,0.05219263,132.94,132.92,0.05516915]
[1725465071112,3.81319263,132.94,132.92,0.05516915]
[1725465071814,3.7611,132.93,132.92,0.05516915]
[1725465072221,3.7623,132.9,132.82,30.6706]
[1725465072517,3.68038832,132.9,132.83,2.3159]
[1725465072709,3.7619,132.91,132.88,3.7625]
[1725465072909,3.76533427,132.9,132.88,3.7625]
[1725465073110,3.76533427,132.9,132.83,2.3159]
[1725465073316,0.05759401,132.88,132.87,3.7626]
[1725465073531,0.0546888,132.89,132.86,0.04928841]
[1725465073818,2.4671,132.98,132.86,26.04406446]
[1725465074009,2.4671,132.98,132.86,25.99]
[1725465074206,3.761,132.94,132.91,3.7615]
[1725465074518,2.4671,132.98,132.86,25.99]
[1725465074919,0.04885233,132.93,132.91,0.04897197]
[1725465075218,3.77323594,132.92,132.91,0.04897197]
[1725465075423,7.53463594,132.92,132.91,0.04897197]
[1725465075607,3.77323594,132.92,132.91,0.04897197]
[1725465075806,0.05536411,132.93,132.92,3.7614]
[1725465076618,0.05536411,132.93,132.91,0.04897197]
[1725465077818,0.05536411,132.93,132.92,3.7614]
[1725465078225,3.74115876,132.99,132.91,28.416]
[1725465078419,2.2885,133.05,132.91,28.416]
[1725465078617,2.158,133.06,132.94,25.99]
[1725465078819,7.50995254,133.06,132.94,25.99]
[1725465079023,2.2741,133.08,132.95,2.3042]
[1725465079218,0.05585655,133.03,133.0,0.04859142]
[1725465079524,3.8842042,133.03,133.02,3.7586]
[1725465079710,0.05585655,133.03,133.02,3.7586]
[1725465080924,4.4465,133.12,133.0,0.05160548]
[1725465080925,25.99,133.14,133.01,25.99]
[1725465081218,25.99,133.14,133.02,2.3042]
[1725465081812,0.0493291,133.09,133.08,3.7567]
[1725465082013,0.04756441,133.1,133.07,0.04810539]
[1725465082926,0.04756441,133.1,133.07,3.80510539]
[1725465083320,0.04756441,133.1,133.07,0.04810539]
[1725465083720,0.04756441,133.1,133.07,3.80520539]
[1725465084834,0.04756441,133.1,133.07,0.04810539]
[1725465085326,0.04756441,133.1,133.08,3.7567]
[1725465086722,0.04756441,133.1,133.07,0.04810539]
[1725465087820,0.04756441,133.1,133.08,3.7566]
[1725465088324,0.04756441,133.1,133.08,3.7569]
[1725465089029,0.04756441,133.1,133.09,3.7566]
[1725465089422,0.04756441,133.1,133.07,0.04810539]
[1725465089726,0.04756441,133.1,133.08,3.7567]
[1725465089927,0.04756441,133.1,133.07,0.04810539]
[1725465090229,0.04756441,133.1,133.08,3.7569]
[1725465090725,0.04756441,133.1,133.07,0.04810539]
[1725465090921,0.04756441,133.1,133.09,3.7566]
[1725465091530,3.68498925,133.14,133.13,3.7554]
[1725465091827,25.99,133.22,133.09,25.99]
[1725465092024,0.36462657,133.21,133.16,3.7546]
[1725465092225,0.36462657,133.21,133.11,21.63]
[1725465092429,3.665824,133.21,133.13,21.63]
[1725465092617,10.84901923,133.24,133.16,0.04985675]
[1725465092819,10.84901923,133.24,133.19,0.05110478]
[1725465093021,3.7533,133.21,133.19,0.05110478]
[1725465093324,21.63,133.23,133.19,0.05110478]
[1725465093533,3.7535,133.2,133.19,0.05110478]
[1725465093717,21.63,133.2,133.19,0.05110478]
[1725465094122,25.96,133.23,133.19,0.05110478]
[1725465095232,10.84901923,133.24,133.19,0.05110478]
[1725465095728,3.7527,133.23,133.19,3.80460478]
[1725465095931,10.84901923,133.24,133.19,0.05110478]
[1725465096328,3.7528,133.23,133.19,3.80490478]
[1725465096528,10.84901923,133.24,133.19,0.05110478]
[1725465096934,3.7531,133.22,133.19,0.05110478]
[1725465097526,3.7531,133.22,133.19,3.80480478]
[1725465097827,3.7529,133.23,133.19,3.80480478]
[1725465098024,10.84901923,133.24,133.19,0.05110478]
[1725465098230,25.96,133.2,133.07,25.96]
[1725465098422,25.96,133.2,133.09,3.84189891]
[1725465098624,25.96,133.18,133.08,2.2867]
[1725465098828,25.96,133.18,133.09,3.81599087]
[1725465099034,3.7549,133.16,133.12,3.7556]
[1725465099331,3.81283342,133.16,133.08,5.95827562]
[1725465099631,3.81283342,133.16,133.13,3.80732996]
[1725465099632,0.05093731,133.15,133.13,3.80732996]
[1725465100528,0.05093731,133.15,133.13,0.05212996]
[1725465100834,3.80603731,133.15,133.13,0.05212996]
[1725465101536,3.7552,133.14,133.13,0.05212996]
[1725465101830,29.68154181,133.16,133.06,3.7574]
[1725465102028,25.96,133.13,133.06,3.7574]
[1725465102231,4.5912,133.17,133.05,4.8181]
[1725465102232,8.43521532,133.17,133.05,4.8181]
[1725465102429,2.2408,133.17,133.05,30.7781]
[1725465102730,0.05336494,133.12,133.1,0.04987573]
[1725465102937,0.05642537,133.12,133.1,0.04987573]
[1725465103828,3.7561,133.11,133.1,0.04987573]
[1725465104030,25.96,133.13,133.02,2.3385]
[1725465104225,25.96,133.11,133.02,2.3385]
[1725465104425,25.96,133.11,133.04,3.758]
[1725465104925,0.05232583,133.09,133.06,0.05145357]
[1725465105529,3.7572,133.07,133.06,0.05145357]
[1725465105731,7.51547067,133.07,133.06,0.05145357]
[1725465107033,3.75827067,133.07,133.06,0.05145357]
[1725465107237,0.05232583,133.09,133.06,0.05145357]
[1725465107435,3.7571,133.08,133.06,0.05145357]
[1725465107740,0.05232583,133.09,133.06,0.05145357]
[1725465108731,0.05232583,133.09,133.06,3.80875357]
[1725465108937,0.05232583,133.09,133.06,0.05145357]
[1725465109334,0.05232583,133.09,133.08,3.7569]
[1725465109535,2.4527,133.16,133.03,25.96]
[1725465109846,3.755,133.15,133.1,3.7561]
[1725465110133,7.55949022,133.15,133.07,3.68198293]
[1725465110342,3.755,133.15,133.08,2.4705]